fUSD/lending_fUSD_20240820
["ID","MTS","AMOUNT","RATE_DAILY","PERIOD"]
[335375586,1724166646088,-356.83,0.00011671,2]
[335375588,1724166646098,-150.0,0.00011671,2]
[335375590,1724166646107,-356.83,0.00011671,2]
[335375592,1724166646116,-426.75,0.00011671,2]
[335375594,1724166646125,-426.75,0.00011671,2]
[335375596,1724166646135,-356.83,0.00011671,2]
[335375598,1724166646144,-236.475172,0.0001173,2]
[335375600,1724166646154,-236.475172,0.0001173,2]
[335375602,1724166646163,-255.0,0.00011736,2]
[335375604,1724166646172,-600.0,0.00011755,2]
[335375606,1724166646181,-150.264048,0.00011781,7]
[335375608,1724166646190,-160.470016,0.00011793,2]
[335375610,1724166646200,-9410.47270234,0.00011833,2]
[335375612,1724166646209,-187.42,0.00011854,2]
[335375614,1724166646217,-250.0,0.00011854,2]
[335375616,1724166646226,-500.50063133,0.00011914,2]
[335375617,1724166646235,-338.68,0.00011999,2]
[335375619,1724166646245,-500.0,0.00011999,2]
[335375621,1724166646254,-500.0,0.00011999,2]
[335375623,1724166646264,-500.0,0.00011999,2]
[335375625,1724166646274,-211.46,0.00011999,2]
[335375627,1724166646285,-500.0,0.00011999,2]
[335375628,1724166646297,-500.0,0.00011999,2]
[335375630,1724166646306,-500.0,0.00011999,2]
[335375632,1724166646316,-500.0,0.00011999,2]
[335375634,1724166646331,-500.0,0.00011999,2]
[335375636,1724166646340,-5000.0,0.00012,2]
[335375638,1724166646349,-10000.0,0.00012,2]
[335375640,1724166646359,-500.0,0.00012,4]
[335375642,1724166646370,-447.79008175,0.00012,5]
[335375644,1724166646379,-151.0,0.00012,2]
[335375646,1724166646388,-270.517194,0.00012,2]
[335375648,1724166646397,-236.475172,0.00012,2]
[335375649,1724166646406,-236.475172,0.00012,2]
[335375651,1724166646415,-236.475172,0.00012,2]
[335375653,1724166646424,-236.475182,0.00012,2]
[335375655,1724166646433,-150.0,0.00012,2]
[335375657,1724166646442,-9410.47270234,0.00012022,2]
[335375658,1724166646451,-2464.98710796,0.00012025,2]
[335375660,1724166646461,-200.20907633,0.00012066,3]
[335375662,1724166646470,-1468.30408573,0.00012066,3]
[335375664,1724166646480,-362.0,0.00012099,2]
[335375666,1724166646490,-587.0,0.00012099,2]
[335375667,1724166646499,-500.0,0.00012101,2]
[335375669,1724166646508,-500.50063133,0.00012157,2]
[335375671,1724166646518,-9410.47270234,0.00012211,2]
[335375673,1724166646527,-1000.0,0.00012239,2]
[335375675,1724166646536,-600.0,0.00012275,2]
[335375676,1724166646545,-600.0,0.00012345,2]
[335375678,1724166646555,-340.61511463,0.00012345,2]
[335375680,1724166646564,-227.67,0.0001235,2]
[335375682,1724166646578,-500.0,0.00012378,2]
[335375684,1724166646588,-652.03,0.00012378,2]
[335375686,1724166646597,-730.81,0.00012378,2]
[335375688,1724166646606,-568.35,0.00012378,2]
[335375690,1724166646615,-644.21,0.00012378,2]
[335375692,1724166646625,-531.06,0.00012378,2]
[335375694,1724166646634,-500.0,0.00012378,2]
[335375696,1724166646643,-500.0,0.00012378,2]
[335375698,1724166646652,-500.0,0.00012378,2]
[335375699,1724166646661,-500.0,0.00012378,2]
[335375701,1724166646671,-1312.63,0.00012378,2]
[335375703,1724166646680,-763.39,0.00012378,2]
[335375705,1724166646690,-500.0,0.00012378,2]
[335375707,1724166646699,-1733.29,0.00012378,2]
[335375709,1724166646709,-562.05,0.00012378,2]
[335375711,1724166646718,-500.0,0.00012378,2]
[335375713,1724166646727,-500.0,0.00012378,2]
[335375715,1724166646737,-500.0,0.00012378,2]
[335375717,1724166646747,-1147.47,0.00012378,2]
[335375719,1724166646757,-500.0,0.00012378,2]
[335375721,1724166646767,-1468.30408573,0.00012379,3]
[335375723,1724166646775,-617.27,0.00012379,2]
[335375725,1724166646785,-500.0,0.00012379,2]
[335375727,1724166646794,-500.0,0.00012379,2]
[335375729,1724166646803,-500.0,0.00012379,2]
[335375731,1724166646813,-500.0,0.00012379,2]
[335375733,1724166646829,-677.5,0.00012379,2]
[335375735,1724166646839,-16156.05407656,0.0001238,2]
[335375738,1724166646855,-2953.88686576,0.0001238,2]
[335375740,1724166646867,-1777.0,0.0001238,2]
[335375742,1724166646879,-697.95966885,0.0001238,2]
[335375744,1724166646890,-7991.76305411,0.0001238,2]
[335375747,1724166646907,-391.47,0.00010476,2]
[335375749,1724166646916,-11104.89475852,0.0001238,2]
[335375751,1724166646928,-9219.48681832,0.0001238,2]
[335375753,1724166646939,-642.5,0.0001238,2]
[335375755,1724166646951,-432.94882942,0.0001238,2]
[335375757,1724166646962,-5900.0,0.0001238,2]
[335375760,1724166646980,-480.1275,0.0001238,2]
[335375762,1724166646992,-29500.94380252,0.0001238,2]
[335375764,1724166647003,-298.155,0.0001238,2]
[335375772,1724166647068,-633.93258529,0.0001238,2]
[335375774,1724166647082,-1027.23639687,0.0001238,2]
[335375776,1724166647093,-3911.49656723,0.0001238,2]
[335375778,1724166647105,-8544.71117213,0.0001238,2]
[335375780,1724166647116,-9598.64994,0.0001238,2]
[335375782,1724166647127,-11611.73403917,0.0001238,2]
[335375783,1724166647136,-179.65493734,0.0001239,2]
[335375785,1724166647145,-153.03920008,0.0001239,2]
[335375787,1724166647155,-7879.79040369,0.0001239,2]
[335375789,1724166647166,-500.0,0.00012394,2]
[335375791,1724166647176,-500.0,0.00012394,2]
[335375793,1724166647186,-500.0,0.00012394,2]
[335375795,1724166647196,-500.0,0.00012394,2]
[335375797,1724166647205,-500.0,0.00012394,2]
[335375799,1724166647214,-500.0,0.00012394,2]
[335375800,1724166647223,-500.0,0.00012394,2]
[335375802,1724166647232,-500.0,0.00012394,2]
[335375804,1724166647241,-153.03920008,0.00012395,2]
[335375806,1724166647251,-1468.27026248,0.00012395,2]
[335375808,1724166647260,-7879.79040367,0.00012395,2]
[335375810,1724166647270,-5293.90155983,0.00012397,2]
[335375812,1724166647284,-2985.00595935,0.000124,2]
[335375814,1724166647293,-2464.98710796,0.000124,2]
[335375815,1724166647303,-500.50063133,0.000124,2]
[335375817,1724166647312,-9410.47270234,0.000124,2]
[335375819,1724166647328,-153.03920008,0.000124,2]
[335375821,1724166647338,-1468.27026248,0.000124,2]
[335375823,1724166647347,-7879.79040367,0.000124,2]
[335375824,1724166647356,-179.40178532,0.00012473,2]
[335375825,1724166647367,-200.05083341,0.00012473,2]
[335375826,1724166647376,-200.03924347,0.00012473,2]
[335375827,1724166647385,-155.89465869,0.00012473,2]
[335375828,1724166647395,-202.27524859,0.00012473,2]
[335375829,1724166647404,-302.1908792,0.00012473,2]
[335375831,1724166647413,-200.0,0.00012473,2]
[335375832,1724166647423,-200.04694654,0.00012473,2]
[335375834,1724166647433,-155.03276608,0.00012473,2]
[335375835,1724166647442,-202.78352817,0.00012473,2]
[335375836,1724166647451,-1116.1247291,0.00012488,2]
[335375837,1724166647461,-617.27,0.00012489,2]
[335375839,1724166647470,-617.27,0.00012489,2]
[335375840,1724166647479,-617.27,0.00012489,2]
[335375842,1724166647488,-500.0,0.00012489,2]
[335375844,1724166647497,-500.0,0.00012489,2]
[335375846,1724166647506,-616.89956562,0.00012489,2]
[335375848,1724166647515,-500.0,0.00012489,2]
[335375850,1724166647525,-500.0,0.00012489,2]
[335375852,1724166647534,-501.16,0.00012489,2]
[335375853,1724166647543,-500.0,0.00012489,2]
[335375855,1724166647552,-500.0,0.00012489,2]
[335375857,1724166647561,-500.0,0.00012489,2]
[335375859,1724166647574,-652.03,0.00012489,2]
[335375861,1724166647583,-652.03,0.00012489,2]
[335375863,1724166647592,-652.03,0.00012489,2]
[335375865,1724166647601,-730.81,0.00012489,2]
[335375867,1724166647610,-730.81,0.00012489,2]
[335375868,1724166647619,-730.81,0.00012489,2]
[335375870,1724166647628,-531.06,0.00012489,2]
[335375872,1724166647637,-531.06,0.00012489,2]
[335375874,1724166647646,-531.06,0.00012489,2]
[335375876,1724166647656,-500.0,0.00012489,2]
[335375878,1724166647665,-500.0,0.00012489,2]
[335375880,1724166647675,-463.27,0.00012489,2]
[335375882,1724166647687,-405.02,0.00012489,2]
[335375884,1724166647695,-500.0,0.00012489,2]
[335375885,1724166647705,-500.0,0.00012489,2]
[335375887,1724166647714,-500.0,0.00012489,2]
[335375889,1724166647723,-500.0,0.00012489,2]
[335375891,1724166647732,-500.0,0.00012489,2]
[335375893,1724166647742,-500.0,0.00012489,2]
[335375895,1724166647751,-500.0,0.00012489,2]
[335375897,1724166647761,-500.0,0.00012489,2]
[335375898,1724166647770,-500.0,0.00012489,2]
[335375900,1724166647779,-1312.63,0.00012489,2]
[335375902,1724166647788,-852.26798927,0.00012489,2]
[335375905,1724166647801,-460.36201073,0.00012489,2]
[335375906,1724166647810,-380.41457561,0.00012489,2]
[335375909,1724166647828,-119.58542439,0.00012489,2]
[335375911,1724166647838,-974.99082903,0.00012489,2]
[335375913,1724166647851,-337.63917097,0.00012489,2]
[335375915,1724166647861,-486.08245939,0.00012489,2]
[335375917,1724166647872,-13.91754061,0.00012489,2]
[335375919,1724166647882,-486.08245939,0.00012489,2]
[335375920,1724166647893,-13.91754061,0.00012489,2]
[335375922,1724166647903,-539.82748551,0.00012489,2]
[335375924,1724166647914,-137.67251449,0.00012489,2]
[335375926,1724166647924,-677.5,0.00012489,2]
[335375928,1724166647933,-677.5,0.00012489,2]
[335375930,1724166647943,-763.39,0.00012489,2]
[335375932,1724166647952,-763.39,0.00012489,2]
[335375934,1724166647962,-763.39,0.00012489,2]
[335375936,1724166647972,-500.0,0.00012489,2]
[335375938,1724166647981,-580.64,0.00012489,2]
[335375940,1724166647991,-500.0,0.00012489,2]
[335375942,1724166648000,-500.0,0.00012489,2]
[335375944,1724166648009,-500.0,0.00012489,2]
[335375946,1724166648019,-1733.29,0.00012489,2]
[335375948,1724166648028,-425.93723913,0.00012489,2]
[335375971,1724166648374,-1307.35276087,0.00012489,2]
[335375973,1724166648385,-1733.29,0.00012489,2]
[335375975,1724166648394,-500.0,0.00012489,2]
[335375977,1724166648404,-500.0,0.00012489,2]
[335375979,1724166648413,-500.0,0.00012489,2]
[335375981,1724166648422,-647.31798878,0.00012489,2]
[335375983,1724166648432,-500.0,0.00012489,2]
[335375985,1724166648441,-500.0,0.00012489,2]
[335375987,1724166648451,-268.71,0.00012489,2]
[335375989,1724166648462,-500.0,0.00012489,2]
[335375991,1724166648472,-500.0,0.00012489,2]
[335375993,1724166648482,-520.88,0.00012489,2]
[335375995,1724166648492,-500.0,0.00012489,2]
[335375997,1724166648502,-500.0,0.00012489,2]
[335375999,1724166648512,-1147.47,0.00012489,2]
[335376001,1724166648521,-1147.47,0.00012489,2]
[335376003,1724166648531,-1147.47,0.00012489,2]
[335376005,1724166648541,-500.0,0.00012489,2]
[335376007,1724166648551,-500.0,0.00012489,2]
[335376009,1724166648560,-500.0,0.00012489,2]
[335376011,1724166648573,-500.0,0.00012489,2]
[335376013,1724166648583,-500.0,0.00012489,2]
[335376015,1724166648593,-420.13993676,0.00012489,2]
[335376017,1724166648603,-413.85,0.00012489,2]
[335376019,1724166648612,-500.0,0.00012489,2]
[335376021,1724166648621,-479.26,0.00012489,2]
[335376023,1724166648631,-42302.18931359,0.0001249,3]
[335376025,1724166648643,-1166.5322319,0.0001249,3]
[335376039,1724166648761,-200.0,0.00010562,2]
[335376041,1724166648772,-486.036858,0.00010835,2]
[335376043,1724166648782,-486.036858,0.00010898,2]
[335376058,1724166648921,-486.036858,0.00010898,2]
[335376060,1724166648930,-486.036858,0.00010899,2]
[335376062,1724166648940,-200.0,0.00011882,2]
[335376064,1724166648949,-243.9725685,0.00012,2]
[335376066,1724166648966,-486.036858,0.00010899,2]
[335376068,1724166648976,-228.2974315,0.00012,2]
[335376071,1724166648986,-472.27,0.00012,2]
[335376073,1724166648996,-472.27,0.00012,2]
[335376075,1724166649005,-116701.12571051,0.0001249,3]
[335376077,1724166649016,-688.29693258,0.0001249,3]
[335376079,1724166649028,-391849.19890629,0.0001249,3]
[335376081,1724166649037,-617.27,0.0001249,2]
[335376082,1724166649047,-500.0,0.0001249,2]
[335376084,1724166649056,-652.03,0.0001249,2]
[335376087,1724166649068,-730.81,0.0001249,2]
[335376088,1724166649077,-531.06,0.0001249,2]
[335376091,1724166649087,-393.88,0.0001249,2]
[335376093,1724166649096,-500.0,0.0001249,2]
[335376094,1724166649106,-500.0,0.0001249,2]
[335376096,1724166649116,-1312.63,0.0001249,2]
[335376098,1724166649126,-500.0,0.0001249,2]
[335376101,1724166649137,-677.5,0.0001249,2]
[335376103,1724166649147,-763.39,0.0001249,2]
[335376105,1724166649156,-500.0,0.0001249,2]
[335376107,1724166649166,-1733.29,0.0001249,2]
[335376109,1724166649176,-500.0,0.0001249,2]
[335376111,1724166649185,-500.0,0.0001249,2]
[335376113,1724166649195,-1147.47,0.0001249,2]
[335376115,1724166649204,-500.0,0.0001249,2]
[335376117,1724166649214,-489.66,0.0001249,2]
[335376118,1724166649224,-96872.92374282,0.00012491,2]
[335376120,1724166649234,-500.0,0.00012491,2]
[335376122,1724166649244,-652.03,0.00012491,2]
[335376124,1724166649254,-730.81,0.00012491,2]
[335376126,1724166649263,-531.06,0.00012491,2]
[335376128,1724166649272,-500.0,0.00012491,2]
[335376130,1724166649286,-2475.7532877,0.00012491,2]
[335376132,1724166649296,-2668.6461457,0.00012491,2]
[335376134,1724166649306,-2861.5390037,0.00012491,2]
[335376136,1724166649315,-3054.4318617,0.00012491,2]
[335376138,1724166649328,-3247.3247197,0.00012491,2]
[335376140,1724166649338,-1312.63,0.00012491,2]
[335376142,1724166649348,-500.0,0.00012491,2]
[335376144,1724166649357,-763.39,0.00012491,2]
[335376146,1724166649368,-500.0,0.00012491,2]
[335376148,1724166649378,-1733.29,0.00012491,2]
[335376150,1724166649388,-500.0,0.00012491,2]
[335376152,1724166649397,-60897.6496489,0.00012491,2]
[335376154,1724166649408,-51813.8668471,0.00012491,2]
[335376156,1724166649417,-42730.0840453,0.00012491,2]
[335376158,1724166649427,-33646.3012436,0.00012491,2]
[335376160,1724166649438,-24562.5184418,0.00012491,2]
[335376162,1724166649447,-500.0,0.00012491,2]
[335376164,1724166649458,-14773.538251,0.00012491,2]
[335376166,1724166649468,-12569.8470829,0.00012491,2]
[335376168,1724166649477,-10366.1559149,0.00012491,2]
[335376170,1724166649487,-8162.4647469,0.00012491,2]
[335376172,1724166649497,-5958.7735788,0.00012491,2]
[335376174,1724166649507,-1147.47,0.00012491,2]
[335376176,1724166649516,-500.0,0.00012491,2]
[335376177,1724166649526,-9529.0859528,0.00012491,2]
[335376179,1724166649536,-8111.8198671,0.00012491,2]
[335376181,1724166649546,-6694.5537815,0.00012491,2]
[335376183,1724166649555,-5277.2876958,0.00012491,2]
[335376185,1724166649564,-3860.0216102,0.00012491,2]
[335376187,1724166649577,-150.0,0.00012493,2]
[335376189,1724166649586,-42768.0,0.00012493,2]
[335376191,1724166649596,-356.83,0.00012493,2]
[335376193,1724166649607,-150.0,0.00012493,2]
[335376195,1724166649616,-150.0,0.00012493,2]
[335376197,1724166649626,-150.0,0.00012493,2]
[335376199,1724166649636,-300.0,0.00012493,2]
[335376201,1724166649646,-851.02,0.00012493,2]
[335376203,1724166649656,-6696.7483746,0.00012497,2]
[335376205,1724166649666,-617.27,0.00012498,2]
[335376207,1724166649676,-500.0,0.00012498,2]
[335376209,1724166649686,-652.03,0.00012498,2]
[335376211,1724166649696,-730.81,0.00012498,2]
[335376213,1724166649706,-531.06,0.00012498,2]
[335376215,1724166649715,-199.76,0.00012498,2]
[335376217,1724166649725,-500.0,0.00012498,2]
[335376219,1724166649735,-1312.63,0.00012498,2]
[335376220,1724166649744,-500.0,0.00012498,2]
[335376222,1724166649754,-677.5,0.00012498,2]
[335376224,1724166649764,-763.39,0.00012498,2]
[335376226,1724166649774,-500.0,0.00012498,2]
[335376228,1724166649785,-1733.29,0.00012498,2]
[335376230,1724166649794,-500.0,0.00012498,2]
[335376232,1724166649804,-500.0,0.00012498,2]
[335376234,1724166649814,-1147.47,0.00012498,2]
[335376236,1724166649827,-500.0,0.00012498,2]
[335376238,1724166649836,-1194.04088155,0.00012499,3]
[335376240,1724166649846,-1194.04088156,0.00012499,3]
[335376242,1724166649855,-617.27,0.00012499,2]
[335376244,1724166649864,-617.27,0.00012499,2]
[335376246,1724166649874,-617.27,0.00012499,2]
[335376248,1724166649884,-617.27,0.00012499,2]
[335376250,1724166649894,-617.27,0.00012499,2]
[335376252,1724166649903,-617.27,0.00012499,2]
[335376254,1724166649913,-617.27,0.00012499,2]
[335376256,1724166649923,-617.27,0.00012499,2]
[335376258,1724166649932,-617.27,0.00012499,2]
[335376260,1724166649942,-617.27,0.00012499,2]
[335376262,1724166649951,-617.42453578,0.00012499,2]
[335376264,1724166649960,-652.03,0.00012499,2]
[335376265,1724166649971,-652.03,0.00012499,2]
[335376267,1724166649981,-652.03,0.00012499,2]
[335376269,1724166649991,-652.03,0.00012499,2]
[335376271,1724166650000,-652.03,0.00012499,2]
[335376273,1724166650010,-652.03,0.00012499,2]
[335376275,1724166650020,-652.03,0.00012499,2]
[335376277,1724166650030,-652.03,0.00012499,2]
[335376279,1724166650040,-652.03,0.00012499,2]
[335376281,1724166650049,-652.15,0.00012499,2]
[335376283,1724166650059,-730.81,0.00012499,2]
[335376285,1724166650070,-730.81,0.00012499,2]
[335376287,1724166650080,-730.81,0.00012499,2]
[335376289,1724166650090,-730.81,0.00012499,2]
[335376291,1724166650100,-730.81,0.00012499,2]
[335376294,1724166650110,-730.81,0.00012499,2]
[335376296,1724166650120,-730.81,0.00012499,2]
[335376298,1724166650130,-730.81,0.00012499,2]
[335376300,1724166650139,-730.81,0.00012499,2]
[335376301,1724166650148,-730.89999999,0.00012499,2]
[335376303,1724166650157,-531.06,0.00012499,2]
[335376305,1724166650166,-531.06,0.00012499,2]
[335376307,1724166650175,-531.06,0.00012499,2]
[335376309,1724166650186,-531.06,0.00012499,2]
[335376311,1724166650195,-531.06,0.00012499,2]
[335376313,1724166650204,-531.06,0.00012499,2]
[335376315,1724166650214,-531.06,0.00012499,2]
[335376317,1724166650223,-531.06,0.00012499,2]
[335376318,1724166650233,-531.06,0.00012499,2]
[335376320,1724166650242,-531.16,0.00012499,2]
[335376322,1724166650251,-500.0,0.00012499,2]
[335376324,1724166650260,-500.0,0.00012499,2]
[335376326,1724166650270,-150.55,0.00012499,2]
[335376328,1724166650280,-1312.63,0.00012499,2]
[335376330,1724166650294,-1312.63,0.00012499,2]
[335376332,1724166650303,-500.0,0.00012499,2]
[335376334,1724166650312,-1312.63,0.00012499,2]
[335376336,1724166650322,-500.0,0.00012499,2]
[335376338,1724166650332,-1312.63,0.00012499,2]
[335376340,1724166650341,-500.0,0.00012499,2]
[335376342,1724166650351,-1312.63,0.00012499,2]
[335376344,1724166650361,-500.0,0.00012499,2]
[335376346,1724166650372,-1312.63,0.00012499,2]
[335376348,1724166650382,-500.0,0.00012499,2]
[335376350,1724166650392,-500.0,0.00012499,2]
[335376351,1724166650401,-315.12,0.00012499,2]
[335376354,1724166650411,-1312.63,0.00012499,2]
[335376355,1724166650420,-1312.63,0.00012499,2]
[335376357,1724166650430,-677.5,0.00012499,2]
[335376359,1724166650439,-677.5,0.00012499,2]
[335376361,1724166650449,-1312.63,0.00012499,2]
[335376363,1724166650458,-1312.67,0.00012499,2]
[335376365,1724166650467,-677.5,0.00012499,2]
[335376367,1724166650477,-677.5,0.00012499,2]
[335376369,1724166650486,-677.5,0.00012499,2]
[335376371,1724166650495,-677.5,0.00012499,2]
[335376373,1724166650504,-677.5,0.00012499,2]
[335376375,1724166650514,-677.5,0.00012499,2]
[335376377,1724166650523,-677.5,0.00012499,2]
[335376379,1724166650532,-677.5,0.00012499,2]
[335376381,1724166650541,-677.62524385,0.00012499,2]
[335376383,1724166650550,-763.39,0.00012499,2]
[335376385,1724166650560,-763.39,0.00012499,2]
[335376386,1724166650569,-763.39,0.00012499,2]
[335376389,1724166650578,-763.39,0.00012499,2]
[335376391,1724166650588,-763.39,0.00012499,2]
[335376393,1724166650597,-763.39,0.00012499,2]
[335376395,1724166650606,-763.39,0.00012499,2]
[335376397,1724166650616,-763.39,0.00012499,2]
[335376399,1724166650625,-763.39,0.00012499,2]
[335376401,1724166650634,-763.49,0.00012499,2]
[335376403,1724166650643,-500.0,0.00012499,2]
[335376404,1724166650652,-500.0,0.00012499,2]
[335376406,1724166650662,-500.0,0.00012499,2]
[335376408,1724166650671,-500.0,0.00012499,2]
[335376410,1724166650680,-500.0,0.00012499,2]
[335376412,1724166650689,-500.0,0.00012499,2]
[335376414,1724166650699,-500.0,0.00012499,2]
[335376416,1724166650708,-340.45,0.00012499,2]
[335376418,1724166650718,-1733.29,0.00012499,2]
[335376420,1724166650727,-1733.29,0.00012499,2]
[335376422,1724166650737,-1733.29,0.00012499,2]
[335376423,1724166650746,-1733.29,0.00012499,2]
[335376425,1724166650755,-1733.29,0.00012499,2]
[335376427,1724166650764,-1733.29,0.00012499,2]
[335376429,1724166650773,-1733.29,0.00012499,2]
[335376431,1724166650782,-1733.29,0.00012499,2]
[335376433,1724166650792,-1733.29,0.00012499,2]
[335376435,1724166650802,-1733.40810619,0.00012499,2]
[335376437,1724166650812,-500.0,0.00012499,2]
[335376439,1724166650828,-500.0,0.00012499,2]
[335376441,1724166650839,-500.0,0.00012499,2]
[335376443,1724166650849,-500.0,0.00012499,2]
[335376445,1724166650859,-500.0,0.00012499,2]
[335376448,1724166650871,-372.48,0.00012499,2]
[335376450,1724166650881,-500.0,0.00012499,2]
[335376452,1724166650892,-500.0,0.00012499,2]
[335376454,1724166650904,-500.0,0.00012499,2]
[335376456,1724166650915,-500.0,0.00012499,2]
[335376458,1724166650926,-500.0,0.00012499,2]
[335376460,1724166650937,-329.47,0.00012499,2]
[335376462,1724166650948,-1147.47,0.00012499,2]
[335376464,1724166650959,-1147.47,0.00012499,2]
[335376466,1724166650970,-1147.47,0.00012499,2]
[335376468,1724166650980,-1147.47,0.00012499,2]
[335376470,1724166650991,-1147.47,0.00012499,2]
[335376472,1724166651002,-1147.47,0.00012499,2]
[335376475,1724166651012,-1147.47,0.00012499,2]
[335376477,1724166651023,-1147.47,0.00012499,2]
[335376479,1724166651034,-1147.47,0.00012499,2]
[335376481,1724166651044,-1147.48746569,0.00012499,2]
[335376483,1724166651055,-500.0,0.00012499,2]
[335376485,1724166651065,-500.0,0.00012499,2]
[335376487,1724166651088,-500.0,0.00012499,2]
[335376489,1724166651098,-500.0,0.00012499,2]
[335376491,1724166651107,-500.0,0.00012499,2]
[335376493,1724166651117,-500.0,0.00012499,2]
[335376495,1724166651127,-500.0,0.00012499,2]
[335376497,1724166651136,-500.0,0.00012499,2]
[335376499,1724166651147,-500.0,0.00012499,2]
[335376501,1724166651156,-489.66,0.00012499,2]
[335376502,1724166651166,-188421.09459536,0.000125,2]
[335376505,1724166651181,-449.00319473,0.000125,2]
[335376507,1724166651193,-5730.86408926,0.000125,2]
[335376509,1724166651205,-5943.489412,0.000125,2]
[335376512,1724166651224,-472.27,0.00012,2]
[335376514,1724166651234,-1972.16534799,0.000125,2]
[335376519,1724166651275,-21767.00928526,0.000125,2]
[335376522,1724166651295,-3162.11600821,0.000125,2]
[335376524,1724166651307,-29781.853839,0.000125,2]
[335376526,1724166651327,-3956431.52215106,0.000125,2]
[335376531,1724166651477,-486.036858,0.00010835,2]
[335376533,1724166651487,-486.036858,0.00010898,2]
[335376535,1724166651496,-486.036858,0.00010898,2]
[335376537,1724166651506,-486.036858,0.00010899,2]
[335376539,1724166651515,-486.036858,0.00010995,2]
[335376541,1724166651524,-486.036858,0.00010998,2]
[335376543,1724166651533,-486.036858,0.00010999,2]
[335376545,1724166651543,-486.036858,0.00010999,2]
[335376547,1724166651552,-486.036858,0.00010999,2]
[335376556,1724166651561,-192.85,0.00011671,2]
[335376557,1724166651687,-472.27,0.00012,2]
[335376558,1724166651698,-472.27,0.00012,2]
[335376559,1724166651708,-472.27,0.00012,2]
[335376560,1724166651718,-472.27,0.00012,2]
[335376561,1724166651727,-472.27,0.00012,2]
[335376562,1724166651736,-385.54119141,0.00012,2]
[335376563,1724166651747,-86.72880859,0.00012,2]
[335376564,1724166651757,-463.23177045,0.00012,2]
[335376565,1724166651768,-9.03822955,0.00012,2]
[335376566,1724166651779,-472.27,0.00012,2]
[335376568,1724166651789,-472.27,0.00012,2]
[335376570,1724166651799,-45.3632756,0.00012,2]
[335376571,1724166651810,-426.9067244,0.00012,2]
[335376573,1724166651823,-472.27,0.00012,2]
[335376575,1724166651832,-880.4932756,0.00012018,2]
[335376578,1724166651845,-967.8,0.00012018,2]
[335376580,1724166651857,-996.45,0.00012018,2]
[335376582,1724166651869,-648.10000001,0.00012018,2]
[335376584,1724166651880,-288.71096176,0.00012018,2]
[335376586,1724166651893,-928.1788938,0.00012018,2]
[335376588,1724166651903,-861.93887997,0.000123,2]
[335376590,1724166651912,-2952.64472301,0.000125,2]
[335376592,1724166651923,-1290.17499999,0.000125,2]
[335376594,1724166651940,-472.27,0.00012,2]
[335376596,1724166651950,-1003.005,0.000125,2]
[335376707,1724166788085,500.0,9.361e-05,2]
[335376708,1724166806563,500.0,9.361e-05,2]
[335376711,1724166863278,16243.40153425,9.361e-05,2]
[335376712,1724166882392,760.45682958,9.361e-05,2]
[335376715,1724167152690,3294.0,9.895e-05,2]
[335376716,1724167160901,418.93,8.219e-05,2]
[335376717,1724167174172,151.78,9.898e-05,2]
[335376718,1724167177359,1113.38,9.898e-05,2]
[335376719,1724167311122,21780.36,9.848e-05,2]